bitfinex/quotes_ETHUSD_20240927
["timestamp","ask_amount","ask_price","bid_price","bid_amount"]
[1727414230543,0.04869189,2649.5,2649.4,1.18159197]
[1727414232139,0.04869189,2649.5,2649.4,1.18993355]
[1727414233040,3.82298189,2649.5,2649.4,1.18993355]
[1727414233430,3.82298189,2649.5,2649.3,1.57545596]
[1727414233629,4.65704508,2649.5,2649.3,1.57545596]
[1727414234655,4.65704508,2649.5,2649.4,1.57545596]
[1727414234943,4.65704508,2649.5,2649.4,1.19061764]
[1727414235625,4.65704508,2649.5,2649.3,1.57545596]
[1727414236756,4.65704508,2649.5,2649.4,1.19097352]
[1727414237941,3.82216539,2649.5,2649.4,1.19097352]
[1727414239921,0.04787539,2649.5,2649.4,1.19097352]
[1727414240321,0.04787539,2649.5,2649.4,0.8122]
[1727414240665,8.29141,2649.8,2649.4,2.38765596]
[1727414240856,3.82254801,2649.7,2649.5,1.19075188]
[1727414241154,3.77415,2649.6,2649.4,1.19075188]
[1727414241356,3.77429,2649.5,2649.4,1.19075188]
[1727414241564,4.58251727,2649.5,2649.4,1.19075188]
[1727414241720,3.82283347,2649.5,2649.4,1.19075188]
[1727414241926,3.82283347,2649.5,2649.4,1.57545596]
[1727414242127,0.04854347,2649.5,2649.4,4.97152877]
[1727414242630,0.39433034,2650.1,2649.6,4.58635]
[1727414242835,0.04693331,2650.0,2649.8,1.1899118]
[1727414243044,0.39427718,2650.0,2649.8,1.1899118]
[1727414243386,0.04692966,2649.9,2649.8,1.1899118]
[1727414243932,4.56414966,2649.9,2649.7,1.1899118]
[1727414244133,3.77386,2649.8,2649.6,1.1899118]
[1727414244530,0.04713919,2649.7,2649.6,2.39874907]
[1727414244757,0.04713919,2649.7,2649.6,3.21431679]
[1727414245072,3.77372,2649.9,2649.6,3.21431679]
[1727414245374,3.77372,2649.9,2649.7,1.18942074]
[1727414245573,0.04714284,2649.8,2649.7,1.18942074]
[1727414246071,3.77372,2649.9,2649.7,1.18942074]
[1727414246457,3.7735,2650.1,2649.7,1.18942074]
[1727414246667,3.82074013,2650.0,2649.7,1.18942074]
[1727414247131,0.04715013,2650.0,2649.7,1.18942074]
[1727414247478,0.04715013,2650.0,2649.8,0.8122]
[1727414247666,3.77338,2650.2,2649.8,0.8122]
[1727414247838,0.04714103,2650.1,2649.8,0.8122]
[1727414249841,0.04714103,2650.1,2649.8,2.00162074]
[1727414250044,3.77278,2650.6,2650.0,0.8106]
[1727414250255,3.82012937,2650.5,2650.0,2.00002074]
[1727414250453,3.82012937,2650.5,2650.1,1.18942074]
[1727414251276,3.82012937,2650.5,2650.0,2.00002074]
[1727414251746,3.77291,2650.5,2650.0,2.00002074]
[1727414251982,0.04725398,2650.4,2650.0,2.81820042]
[1727414253382,0.04725398,2650.4,2650.0,1.62877968]
[1727414253983,0.04725398,2650.4,2650.1,4.58403]
[1727414254286,3.8928637,2651.9,2650.1,4.58403]
[1727414254287,3.77234,2650.9,2650.3,0.8106]
[1727414254493,4.51573,2651.0,2650.4,3.77301]
[1727414254682,0.04625685,2650.8,2650.4,3.8484642]
[1727414254879,7.54391,2651.2,2650.7,0.8106]
[1727414255045,3.81840332,2651.1,2650.7,0.8106]
[1727414255781,3.77226,2651.0,2650.7,0.8106]
[1727414255960,3.7723,2650.9,2650.4,0.8106]
[1727414256150,3.8187164,2650.9,2650.4,0.8106]
[1727414257284,3.77249,2650.8,2650.4,0.8106]
[1727414257651,0.04640911,2650.7,2650.4,0.8106]
[1727414257991,3.7723,2650.9,2650.4,0.8106]
[1727414258487,0.04641276,2650.8,2650.4,0.8106]
[1727414258647,0.04641276,2650.8,2650.4,1.268985]
[1727414258844,3.77206,2651.1,2650.4,1.268985]
[1727414259075,3.81859004,2651.0,2650.4,1.268985]
[1727414259288,3.81859004,2651.0,2650.5,0.8106]
[1727414259587,0.04642004,2651.0,2650.5,4.58345]
[1727414259886,3.77174,2651.3,2650.7,0.8106]
[1727414260194,3.7715,2651.5,2650.9,0.8106]
[1727414260348,0.04658679,2651.2,2651.0,0.8106]
[1727414260550,3.7717,2651.4,2651.0,0.8106]
[1727414260799,3.7715,2651.5,2651.0,0.8106]
[1727414261453,7.54307,2651.5,2651.0,0.8106]
[1727414261654,3.77159,2651.4,2651.0,0.8106]
[1727414263252,3.77176,2651.3,2651.0,0.8106]
[1727414263448,0.04720456,2651.2,2651.0,0.8106]
[1727414263758,7.54361,2651.3,2651.0,0.8106]
[1727414263973,0.04719995,2651.1,2651.0,0.8106]
[1727414264290,0.04720091,2651.1,2651.0,0.8106]
[1727414264498,3.77176,2651.3,2651.0,0.8106]
[1727414264661,0.04720091,2651.1,2651.0,0.8106]
[1727414264863,3.77176,2651.3,2651.0,0.8106]
[1727414265063,0.04720456,2651.2,2651.0,0.8106]
[1727414265296,3.77176,2651.3,2651.0,0.8106]
[1727414265496,0.04720188,2651.1,2651.0,0.8106]
[1727414265791,3.77176,2651.3,2651.0,0.8106]
[1727414265996,0.04720188,2651.1,2651.0,0.8106]
[1727414266195,3.77201,2651.1,2650.7,0.8106]
[1727414266400,3.81921091,2651.1,2650.7,0.8106]
[1727414266601,7.59135091,2651.1,2650.7,0.8106]
[1727414266977,3.81921091,2651.1,2650.7,0.8106]
[1727414268800,0.7435,2651.0,2650.4,0.8106]
[1727414269106,3.77286,2650.6,2650.4,0.8106]
[1727414269404,3.77287,2650.5,2650.4,0.8106]
[1727414269767,3.82009468,2650.5,2650.4,0.8106]
[1727414274525,0.04722468,2650.5,2650.4,0.8106]
[1727414275315,3.77225,2651.0,2650.4,1.268986]
[1727414275519,0.0466379,2650.5,2650.4,0.8106]
[1727414275687,3.77208,2651.1,2650.4,0.8106]
[1727414275888,3.7723,2650.9,2650.4,4.58361]
[1727414276087,0.04664883,2650.8,2650.4,4.58361]
[1727414277689,0.04664883,2650.8,2650.5,0.8106]
[1727414279504,3.81910883,2650.8,2650.5,0.8106]
[1727414281030,3.77271,2650.7,2650.5,0.8106]
[1727414281189,0.04676911,2650.6,2650.5,0.8106]
[1727414283735,3.77289,2650.5,2650.2,0.7742]
[1727414284205,0.04629884,2650.4,2650.2,0.7742]
[1727414284823,3.77273,2650.6,2650.2,0.7742]
[1727414285031,0.04629519,2650.3,2650.2,0.7742]
[1727414285247,3.77274,2650.6,2650.2,1.606311]
[1727414285389,0.04629519,2650.3,2650.2,0.7742]
[1727414285594,3.77274,2650.6,2650.2,0.7742]
[1727414286030,0.04630248,2650.5,2650.2,0.7742]
[1727414291128,0.04629884,2650.4,2650.2,0.7742]
[1727414291519,3.77276,2650.6,2650.2,0.7742]
[1727414291846,0.04629519,2650.3,2650.2,0.7742]
[1727414292008,3.77276,2650.6,2650.2,1.50466792]
[1727414292205,0.04629519,2650.3,2650.2,1.50466792]
[1727414292395,3.77276,2650.6,2650.2,2.68620472]
[1727414292592,0.04621226,2650.3,2650.2,2.68620472]
[1727414292824,3.77276,2650.6,2650.2,2.68620472]
[1727414293323,0.04621955,2650.5,2650.2,2.68620472]
[1727414293833,4.16689715,2650.7,2650.2,1.9557368]
[1727414294133,0.04622319,2650.6,2650.2,1.9557368]
[1727414295535,0.04622319,2650.6,2650.3,1.1815368]
[1727414296028,0.04622319,2650.6,2650.4,0.8223]
[1727414296336,3.77249,2650.8,2650.4,2.0038368]
[1727414296500,0.04621955,2650.5,2650.4,2.0038368]
[1727414296700,3.77249,2650.8,2650.4,2.93676606]
[1727414296902,0.04622683,2650.7,2650.4,2.93676606]
[1727414297102,3.77249,2650.8,2650.4,2.93676606]
[1727414297305,0.04622683,2650.7,2650.4,2.93676606]
[1727414297516,3.77249,2650.8,2650.4,2.93676606]
[1727414297724,0.04622319,2650.6,2650.4,2.93676606]
[1727414297928,3.77249,2650.8,2650.4,2.93676606]
[1727414298438,7.54503,2650.8,2650.4,2.93676606]
[1727414298624,0.04622683,2650.7,2650.4,2.93676606]
[1727414298945,3.77273,2650.6,2650.4,0.8223]
[1727414299244,7.59178319,2650.6,2650.4,1.1815368]
[1727414299443,3.81895319,2650.6,2650.3,1.1815368]
[1727414300524,7.59178319,2650.6,2650.3,1.1815368]
[1727414300724,3.81895319,2650.6,2650.3,1.1815368]
[1727414301648,3.81895319,2650.6,2650.4,1.1815368]
[1727414301942,3.81895319,2650.6,2650.3,1.1815368]
[1727414302755,3.81895319,2650.6,2650.4,1.1815368]
[1727414304653,7.59179319,2650.6,2650.4,1.1815368]
[1727414304955,7.59179319,2650.6,2650.0,1.1815368]
[1727414304956,0.7435,2650.3,2650.0,1.1815368]
[1727414305252,3.77315,2650.3,2650.1,1.1815368]
[1727414305460,0.7435,2650.2,2650.1,1.1815368]
[1727414305637,4.5168,2650.2,2649.9,1.1815368]
[1727414305815,4.56152371,2650.2,2649.9,1.1815368]
[1727414307113,4.5168,2650.2,2649.9,1.1815368]
[1727414307540,3.81824006,2650.1,2649.9,1.1815368]
[1727414307940,3.81824006,2650.1,2649.8,1.1815368]
[1727414308265,3.81824006,2650.1,2649.9,1.1815368]
[1727414308720,3.81824006,2650.1,2649.8,1.1815368]
[1727414309256,3.81824006,2650.1,2649.9,1.1815368]
[1727414311644,4.2124884,2650.1,2649.9,1.1815368]
[1727414315353,4.2124884,2650.1,2649.8,1.1815368]
[1727414317063,3.77358,2650.0,2649.7,1.1815368]
[1727414317257,0.04463647,2649.9,2649.7,1.1815368]
[1727414320260,0.04463647,2649.9,2649.6,1.1815368]
[1727414320905,0.04463647,2649.9,2649.5,1.1815368]
[1727414320906,3.77392,2649.8,2649.5,1.1815368]
[1727414321654,0.04427798,2649.7,2649.5,1.1815368]
[1727414321860,8.29143,2649.8,2649.5,1.1815368]
[1727414322060,0.04427798,2649.7,2649.5,1.1815368]
[1727414322285,4.51742,2649.8,2649.5,1.1815368]
[1727414322492,0.04427798,2649.7,2649.4,1.9324368]
[1727414322695,4.51742,2649.8,2649.4,1.9324368]
[1727414323002,0.04427798,2649.7,2649.4,1.9324368]
[1727414323361,4.51742,2649.8,2649.4,1.9324368]
[1727414323594,0.04427433,2649.6,2649.4,1.9324368]
[1727414323796,4.51742,2649.8,2649.4,1.9324368]
[1727414323993,0.04427068,2649.5,2649.4,1.9324368]
[1727414324198,3.77424,2649.6,2649.2,1.9324368]
[1727414324407,3.77424,2649.6,2649.3,1.1815368]
[1727414324604,0.04390027,2649.5,2649.2,1.9324368]
[1727414324780,3.77424,2649.6,2649.2,1.9324368]
[1727414324983,0.78739024,2649.4,2649.2,1.1815368]
[1727414325196,0.7435,2649.4,2649.2,1.1815368]
[1727414325368,0.04375882,2649.3,2649.2,1.1815368]
[1727414325568,0.04375882,2649.3,2649.1,4.1815368]
[1727414325989,4.51774,2649.6,2649.2,1.1815368]
[1727414326397,0.04376612,2649.5,2649.1,4.1815368]
[1727414326971,4.51774,2649.6,2649.1,4.1815368]
[1727414327172,4.51774,2649.6,2649.1,5.78530974]
[1727414327977,4.51774,2649.6,2649.1,2.78530974]
[1727414328174,0.7435,2649.6,2649.1,1.1815368]
[1727414328398,0.7435,2649.4,2649.0,1.1815368]
[1727414329099,0.7435,2649.4,2648.9,1.1815368]
[1727414329283,0.7435,2649.4,2648.9,2.10784274]
[1727414329628,0.7435,2649.4,2649.0,1.9324368]
[1727414329916,0.7435,2649.4,2649.0,0.7509]
[1727414330423,4.51794,2649.4,2649.0,0.7509]
[1727414331784,3.77467,2649.3,2648.9,1.1815368]
[1727414332303,0.7435,2649.4,2648.9,1.1815368]
[1727414332510,0.04361755,2649.3,2648.9,1.1815368]
[1727414333584,3.81827755,2649.3,2648.9,1.1815368]
[1727414334227,3.77466,2649.3,2648.9,1.1815368]
[1727414334525,3.77466,2649.3,2648.8,1.1815368]
[1727414334731,0.39429745,2649.2,2648.8,6.26035065]
[1727414336114,0.39429745,2649.2,2648.9,0.7509]
[1727414336424,0.39429745,2649.2,2649.0,3.7749]
[1727414336617,0.39429745,2649.2,2649.1,1.12839]
[1727414337520,0.39429745,2649.2,2649.1,4.90325]
[1727414337718,0.39429745,2649.2,2649.1,1.12839]
[1727414337921,0.43762481,2649.2,2649.1,1.12839]
[1727414340839,0.43762481,2649.2,2649.1,0.7509]
[1727414348752,0.43762481,2649.2,2649.1,5.7072968]
[1727414348956,0.04332736,2649.2,2649.1,9.17663415]
[1727414349113,3.77382,2649.9,2649.3,3.77457]
[1727414349314,0.04228009,2649.8,2649.5,0.7726]
[1727414349616,0.04228009,2649.8,2649.6,1.18640648]
[1727414349946,4.51671,2650.3,2649.6,1.18640648]
[1727414350142,4.51671,2650.3,2649.6,2.26321434]
[1727414350520,3.77346,2650.1,2649.7,1.18640648]
[1727414350715,0.0424471,2650.0,2649.6,2.26321434]
[1727414350920,0.0424471,2650.0,2649.7,1.13919497]
[1727414351264,3.77292,2650.5,2649.8,2.0344792]
[1727414351563,3.77292,2650.5,2650.1,0.7726]
[1727414351743,0.03972772,2650.4,2650.1,0.7726]
[1727414351933,3.77292,2650.5,2650.1,1.9594917]
[1727414352261,4.51585,2650.9,2650.2,4.9601717]
[1727414352556,4.51585,2650.9,2650.3,0.7726]
[1727414352557,0.03990076,2650.8,2650.3,0.7726]
[1727414352861,0.03990076,2650.8,2650.3,1.9594917]
[1727414353075,3.81235076,2650.8,2650.3,1.9594917]
[1727414353384,0.03990076,2650.8,2650.3,1.57721967]
[1727414353521,3.77269,2650.7,2650.2,1.1868917]
[1727414353721,0.03989347,2650.6,2650.1,4.9594917]
[1727414353962,3.77276,2650.6,2650.1,4.9594917]
[1727414354432,0.03988983,2650.5,2650.1,4.9594917]
[1727414354850,3.77276,2650.6,2650.1,4.9594917]
[1727414355081,0.03988618,2650.4,2650.1,4.9594917]
[1727414355384,0.03988254,2650.3,2650.1,6.56618142]
[1727414355555,0.03988254,2650.3,2650.1,10.33959142]
[1727414355758,3.77259,2650.7,2650.1,10.33959142]
[1727414356142,0.03989347,2650.6,2650.1,10.33959142]
[1727414356442,0.03989347,2650.6,2650.1,6.56618142]
[1727414356748,0.03988983,2650.5,2650.1,6.56618142]
[1727414356942,3.77259,2650.7,2650.1,6.56618142]
[1727414357134,0.03989347,2650.6,2650.1,5.37928972]
[1727414357339,0.03989347,2650.6,2650.1,6.56618142]
[1727414357538,0.03989347,2650.6,2650.2,1.19216067]
[1727414358142,0.03989347,2650.6,2650.1,5.7329217]
[1727414358341,3.77259,2650.7,2650.1,4.54603]
[1727414358681,0.03989347,2650.6,2650.1,5.7329217]
[1727414359045,3.77259,2650.7,2650.1,5.7329217]
[1727414359246,3.77259,2650.7,2650.2,0.87329217]
[1727414359541,0.03989347,2650.6,2650.2,0.87329217]
[1727414359745,3.77259,2650.7,2650.2,0.87329217]
[1727414359955,0.03989347,2650.6,2650.2,0.87329217]
[1727414360345,3.77259,2650.7,2650.2,0.87329217]
[1727414360543,0.03989251,2650.6,2650.2,0.87329217]
[1727414360774,3.77259,2650.7,2650.2,0.87329217]
[1727414361185,0.03989251,2650.6,2650.2,0.87329217]
[1727414361556,3.77259,2650.7,2650.2,0.87329217]
[1727414361760,0.03989347,2650.6,2650.2,0.87329217]
[1727414361973,3.77259,2650.7,2650.3,0.54193222]
[1727414362480,0.03989251,2650.6,2650.3,0.54193222]
[1727414363892,3.77259,2650.7,2650.3,0.54193222]
[1727414364389,0.04054494,2650.6,2650.3,0.54193222]
[1727414364751,3.77234,2650.9,2650.4,0.7534]
[1727414364952,0.04055222,2650.8,2650.4,0.7534]
[1727414365985,3.77234,2650.9,2650.4,0.7534]
[1727414366400,0.04055222,2650.8,2650.4,1.206044]
[1727414366699,0.04055222,2650.8,2650.6,0.7534]
[1727414366982,3.77203,2651.1,2650.6,4.52612]
[1727414366983,0.04054858,2650.7,2650.6,4.52612]
[1727414367168,0.04054858,2650.7,2650.6,5.40881872]
[1727414367377,4.5154,2651.2,2650.6,5.40881872]
[1727414367378,3.7719,2651.2,2650.6,5.40881872]
[1727414367549,0.04054858,2650.7,2650.6,5.40881872]
[1727414367888,0.39416656,2651.1,2650.6,5.40881872]
[1727414368095,0.04054858,2650.7,2650.6,5.40881872]
[1727414368573,0.39416656,2651.1,2650.6,5.40881872]
[1727414368771,0.04054858,2650.7,2650.6,5.40881872]
[1727414369077,0.39416656,2651.1,2650.6,5.40881872]
[1727414369386,3.0,2665.1,2650.6,5.40881872]
[1727414369387,3.77121,2651.7,2651.1,3.77197]
[1727414369588,4.51444,2651.9,2651.3,0.7795]
[1727414369743,3.77106,2651.8,2651.4,0.46267101]
[1727414369951,3.77118,2651.7,2651.3,0.7795]
[1727414370269,4.51444,2651.9,2651.3,0.7795]
[1727414370468,3.77103,2651.8,2651.3,0.7795]
[1727414370861,3.77118,2651.7,2651.3,0.7795]
[1727414371061,3.81113316,2651.7,2651.3,0.7795]
[1727414372550,3.77131,2651.6,2651.3,0.7795]
[1727414372748,0.03994588,2651.5,2651.3,0.7795]
[1727414376492,4.60373732,2651.7,2651.3,0.7795]
[1727414376687,0.03994952,2651.6,2651.3,0.7795]
[1727414377703,3.81128952,2651.6,2651.3,0.7795]
[1727414377904,3.81128952,2651.6,2651.1,3.7795]
[1727414378234,0.03994952,2651.6,2651.1,7.55148]
[1727414378397,0.03994952,2651.6,2651.1,8.306628]
[1727414379098,3.77132,2651.6,2651.1,8.306628]
[1727414379407,0.03994588,2651.5,2651.1,7.55148]
[1727414379595,0.03994588,2651.5,2651.1,0.7795]
[1727414379939,0.03994588,2651.5,2651.1,3.7795]
[1727414380297,0.03994588,2651.5,2651.1,7.55149]
[1727414380500,3.77118,2651.7,2651.1,7.55149]
[1727414380802,0.03994952,2651.6,2651.1,7.55149]
[1727414381363,0.03994952,2651.6,2651.1,3.7795]
[1727414381561,0.03994952,2651.6,2651.1,7.55144]
[1727414381763,0.03994952,2651.6,2651.1,8.683798]
[1727414382927,0.03994952,2651.6,2651.1,4.911858]
[1727414384163,0.03994952,2651.6,2651.2,4.55127]
[1727414384365,3.77111,2651.8,2651.2,4.55127]
[1727414384567,0.04035519,2651.7,2651.2,4.55127]
[1727414384866,0.04035519,2651.7,2651.2,5.7968438]
[1727414385071,0.39407965,2651.7,2651.2,5.7968438]
[1727414386664,0.04035155,2651.6,2651.2,5.7968438]
[1727414388466,0.04035155,2651.6,2651.2,2.0250738]
[1727414388680,0.04035155,2651.6,2651.2,0.7795]
[1727414388884,0.39407965,2651.7,2651.2,4.55137]
[1727414389050,0.04034791,2651.5,2651.2,4.55137]
[1727414389252,0.04035155,2651.6,2651.2,4.55137]
[1727414389450,0.04034427,2651.4,2651.2,4.55137]
[1727414389664,0.39407965,2651.7,2651.2,4.55137]
[1727414390181,0.04035155,2651.6,2651.2,4.55137]
[1727414390350,0.39407965,2651.7,2651.2,4.55137]
[1727414390550,0.04082916,2651.6,2651.2,4.55137]
[1727414390750,0.39407965,2651.7,2651.2,4.55137]
[1727414391061,0.0408282,2651.6,2651.2,4.55137]
[1727414391467,0.39407965,2651.7,2651.2,4.55137]
[1727414391855,0.04083013,2651.6,2651.2,4.55137]
[1727414392192,3.77111,2651.8,2651.2,4.55137]
[1727414392692,0.04083377,2651.7,2651.2,4.55137]
[1727414395578,0.04083377,2651.7,2651.2,0.7795]
[1727414395769,4.26762815,2651.7,2651.2,0.7795]
[1727414399898,3.77133,2651.6,2651.2,0.7795]
[1727414400215,0.04091579,2651.5,2651.2,0.7795]
[1727414401128,3.77159,2651.4,2650.9,1.1868917]
[1727414401426,3.77189,2651.2,2650.7,0.7729]
[1727414401921,0.04081192,2651.1,2650.7,0.7729]
[1727414402418,3.77225,2651.0,2650.5,1.1868917]
[1727414402625,4.94234025,2651.1,2650.5,3.77286]
[1727414402924,3.77216,2651.0,2650.4,8.5268917]
[1727414403572,3.77216,2651.0,2650.4,12.2998717]
[1727414403712,3.77216,2651.0,2650.4,11.11298]
[1727414403896,3.77216,2651.0,2650.4,12.2998717]
[1727414404191,1.17033025,2651.1,2650.4,7.34]
[1727414404396,4.94244025,2651.1,2650.5,3.77285]
[1727414405413,4.51561,2651.1,2650.5,3.77285]
[1727414406696,4.51561,2651.1,2650.6,0.7729]
[1727414407987,0.04053133,2651.0,2650.6,0.7729]
[1727414411201,0.39407953,2650.9,2650.6,0.7729]
[1727414411396,0.04052404,2650.8,2650.6,1.9597917]
[1727414411638,0.39407953,2650.9,2650.6,1.9597917]
[1727414412130,0.04052404,2650.8,2650.6,1.9597917]
[1727414412495,0.39407953,2650.9,2650.6,0.7729]
[1727414412999,0.04052404,2650.8,2650.6,0.7729]
[1727414413196,0.39407953,2650.9,2650.6,0.7729]
[1727414413594,0.04019224,2650.8,2650.6,0.7729]
[1727414413929,0.39407953,2650.9,2650.6,0.7729]
[1727414414135,0.39407953,2650.9,2650.6,1.9597917]
[1727414414335,0.04019224,2650.8,2650.6,1.9597917]
[1727414414634,0.39407953,2650.9,2650.6,0.7729]
[1727414414999,0.04019224,2650.8,2650.6,0.7729]
[1727414415196,0.39407953,2650.9,2650.6,2.6912434]
[1727414415396,0.39407953,2650.9,2650.8,0.8209]
[1727414415622,0.43418607,2650.9,2650.8,0.8209]
[1727414415900,0.43418607,2650.9,2650.8,4.59334]
[1727414416233,0.43418607,2650.9,2650.8,5.7802317]
[1727414416419,0.39407953,2650.9,2650.8,7.16462848]
[1727414416743,0.43418607,2650.9,2650.8,7.16462848]
[1727414417040,0.39407953,2650.9,2650.8,7.16462848]
[1727414417232,0.43418607,2650.9,2650.8,7.16462848]
[1727414417731,0.39407953,2650.9,2650.8,7.16462848]
[1727414417933,0.43424351,2650.9,2650.8,7.16462848]
[1727414419496,0.43424351,2650.9,2650.8,5.97773678]
[1727414419696,0.43424351,2650.9,2650.8,7.1643343]
[1727414420318,0.43424351,2650.9,2650.8,3.3918943]
[1727414420698,0.43424351,2650.9,2650.8,2.20529678]
[1727414420901,0.43424351,2650.9,2650.8,0.8209]
[1727414421202,0.43424351,2650.9,2650.7,1.18659752]
[1727414424243,0.43424351,2650.9,2650.6,2.00749752]
[1727414424445,0.43424351,2650.9,2650.6,1.18659752]
[1727414429288,1.17774351,2650.9,2650.6,1.18659752]
[1727414429602,1.17774351,2650.9,2650.5,4.18659752]
[1727414429824,0.78366398,2650.9,2650.6,1.18659752]
[1727414429992,4.51585,2650.9,2650.5,4.18659752]
[1727414431805,0.7435,2650.9,2650.6,1.18659752]
[1727414432188,0.0863575,2650.8,2650.5,4.18659752]
[1727414432507,0.7435,2650.9,2650.6,1.18659752]
[1727414432865,0.08619159,2650.8,2650.6,1.18659752]
[1727414434051,0.08619159,2650.8,2650.5,1.18659752]
[1727414434204,0.7435,2650.9,2650.5,1.18659752]
[1727414435531,4.5158,2650.9,2650.5,1.18659752]
[1727414435737,5.344582,2650.9,2650.5,1.18659752]
[1727414436126,0.08619159,2650.8,2650.5,1.18659752]
[1727414436911,0.08619159,2650.8,2650.6,1.18659752]
[1727414437115,0.08619159,2650.8,2650.5,1.18659752]
[1727414437533,4.5158,2650.9,2650.5,1.18659752]
[1727414437922,4.5158,2650.9,2650.6,1.18659752]
[1727414438354,0.08616605,2650.8,2650.5,1.18659752]
[1727414438513,0.08616605,2650.8,2650.6,1.18659752]
[1727414438851,0.0861642,2650.7,2650.6,1.18659752]
[1727414439046,4.5158,2650.9,2650.5,1.18659752]
[1727414439410,4.5158,2650.9,2650.6,1.18659752]
[1727414439635,0.08616605,2650.8,2650.6,1.18659752]
[1727414440055,0.08616605,2650.8,2650.5,1.18659752]
[1727414440422,0.08616605,2650.8,2650.4,1.18659752]
[1727414440423,3.85871605,2650.8,2650.4,1.18659752]
[1727414440622,3.85871605,2650.8,2650.3,1.18659752]
[1727414440623,4.51617,2650.7,2650.3,1.18659752]
[1727414440928,0.08616872,2650.6,2650.3,1.18659752]
[1727414441354,0.7435,2650.5,2650.3,1.18659752]
[1727414441551,4.51665,2650.3,2650.1,1.18659752]
[1727414441752,0.451665,2650.2,2649.9,1.18659752]
[1727414442060,0.08610388,2650.2,2650.0,1.18659752]
[1727414442688,0.7435,2650.3,2650.0,1.18659752]
[1727414443146,0.08606509,2650.2,2650.0,1.18659752]
[1727414443568,0.7435,2650.3,2649.9,1.18659752]
[1727414443773,0.0857956,2650.1,2649.9,1.18659752]
[1727414443978,0.7435,2650.3,2649.9,2.0387495]
[1727414444252,0.7435,2650.5,2650.0,2.01829752]
[1727414444456,0.7435,2650.5,2650.1,1.18659752]
[1727414444672,0.7435,2650.5,2650.0,5.79187752]
[1727414445370,0.7435,2650.5,2650.1,1.18659752]
[1727414445583,0.7435,2650.5,2650.0,4.60528]
[1727414445584,0.08552025,2650.4,2650.0,5.79187752]
[1727414446392,0.7435,2650.5,2650.0,5.79187752]
[1727414446795,0.08552025,2650.4,2650.0,5.79187752]
[1727414447101,0.7435,2650.5,2650.0,5.79187752]
[1727414447578,0.08552025,2650.4,2650.0,5.79187752]
[1727414448289,0.08552025,2650.4,2650.0,2.01829752]
[1727414449729,0.08552025,2650.4,2650.0,0.8317]
[1727414450493,3.77301,2650.4,2650.0,0.8317]
[1727414450812,0.0855184,2650.3,2650.0,0.8317]
[1727414450990,0.0855184,2650.3,2649.9,1.18659752]
[1727414452502,0.0855184,2650.3,2649.8,5.79206752]
[1727414453745,3.8586684,2650.3,2649.8,5.79206752]
[1727414454126,0.0855184,2650.3,2649.8,5.79206752]
[1727414454349,3.77347,2650.1,2649.8,1.18659752]
[1727414454534,3.77347,2650.1,2649.7,4.18659752]
[1727414454722,0.82901285,2650.0,2649.7,4.18659752]
[1727414455050,0.82901285,2650.0,2649.5,1.18659752]
[1727414455051,3.85921994,2649.9,2649.5,1.18659752]
[1727414455750,0.7435,2650.3,2649.4,1.18659752]
[1727414455954,4.51747,2649.8,2649.3,2.01829752]
[1727414456335,0.08526466,2649.7,2649.3,5.01829752]
[1727414456525,0.08526466,2649.7,2649.3,3.8317]
[1727414456725,4.51747,2649.8,2649.3,3.8317]
[1727414457034,0.08526466,2649.7,2649.3,3.8317]
[1727414457240,4.51747,2649.8,2649.3,3.0]
[1727414457569,0.08526466,2649.7,2649.3,3.0]
[1727414457923,0.08526466,2649.7,2649.2,4.96122752]
[1727414457924,3.77402,2649.7,2649.2,4.96122752]
[1727414458663,3.77402,2649.7,2649.2,3.77463]
[1727414458956,3.77402,2649.7,2649.2,4.96122752]
[1727414459118,3.77402,2649.7,2649.2,6.3762038]
[1727414459557,3.77402,2649.7,2649.2,5.18960628]
[1727414459991,3.77402,2649.7,2649.2,2.6015738]
[1727414460173,3.77402,2649.7,2649.2,4.41497628]
[1727414460458,3.77402,2649.7,2649.2,5.6015738]
[1727414460818,3.77402,2649.7,2649.2,4.41497628]
[1727414461361,3.77402,2649.7,2649.1,5.79313752]
[1727414461362,0.7435,2649.6,2649.1,1.18659752]
[1727414461524,0.7435,2649.6,2649.1,3.0]
[1727414461720,0.7435,2649.8,2649.2,4.66756112]
[1727414462044,0.7435,2650.0,2649.4,3.77432]
[1727414462238,0.08488516,2649.9,2649.6,3.77403]
[1727414462446,4.5168,2650.2,2649.6,3.77403]
[1727414462644,4.5168,2650.2,2649.8,4.59122]
[1727414462645,0.08492719,2650.1,2649.8,4.59122]
[1727414463043,1.13774271,2650.4,2649.8,4.59122]
[1727414463244,3.85811089,2650.3,2649.8,4.59122]
[1727414463524,3.77331,2650.2,2649.8,1.81032505]
[1727414463801,3.85811089,2650.3,2649.8,1.81032505]
[1727414463802,3.85811089,2650.3,2649.8,5.58418505]
[1727414463962,0.08492719,2650.1,2649.8,5.58418505]
[1727414464164,0.08492904,2650.2,2649.8,1.81032505]
[1727414464362,3.77318,2650.3,2649.8,1.81032505]
[1727414464363,0.08492534,2650.0,2649.8,1.81032505]
[1727414464595,3.77318,2650.3,2649.8,1.81032505]
[1727414464894,3.77318,2650.3,2649.8,0.8174]
[1727414465098,0.08492904,2650.2,2649.8,0.8174]
[1727414465458,3.77318,2650.3,2649.8,0.8174]
[1727414465660,0.08492904,2650.2,2649.8,0.8174]
[1727414465860,3.77318,2650.3,2649.8,0.8174]
[1727414466062,0.08492904,2650.2,2649.8,0.8174]
[1727414466258,3.77318,2650.3,2649.8,0.8174]
[1727414466496,3.77344,2650.1,2649.6,3.8174]
[1727414466688,3.85824904,2650.2,2649.6,8.92756328]
[1727414466891,0.08492534,2650.0,2649.6,8.92756328]
[1727414467102,0.08492719,2650.1,2649.6,8.92756328]
[1727414467399,0.08492349,2649.9,2649.6,8.92756328]
[1727414467589,0.08492534,2650.0,2649.7,1.01141608]
[1727414467900,3.77332,2650.2,2649.7,1.01141608]
[1727414468108,0.08509594,2649.9,2649.7,1.01141608]
[1727414468399,3.77332,2650.2,2649.6,8.92756328]
[1727414468763,0.08509964,2650.1,2649.6,8.92756328]
[1727414468977,0.08509964,2650.1,2649.6,10.1141608]
[1727414469307,0.08509964,2650.1,2649.6,8.92756328]
[1727414469473,0.08509964,2650.1,2649.6,10.1141608]
[1727414470270,0.08509964,2650.1,2649.7,1.01141608]
[1727414470466,0.08509964,2650.1,2649.8,3.8492328]
[1727414470812,0.08509964,2650.1,2649.9,4.59109]
[1727414471107,0.08508501,2650.0,2649.9,0.8174]